fUSD/lending_fUSD_20260620
["ID","MTS","AMOUNT","RATE_DAILY","PERIOD"]
[425821146,1781937042000,-939.0,0.00022,2]
[425821141,1781937042000,-417.0,0.00022,2]
[425821154,1781937042000,-315.8,0.00022353,2]
[425821151,1781937042000,-13557.3,0.00022,2]
[425821150,1781937042000,-185.0,0.00022,2]
[425821152,1781937042000,-275.0,0.00022,2]
[425821148,1781937042000,-155.0,0.00022,2]
[425821149,1781937042000,-401.0,0.00022,2]
[425821143,1781937042000,-189.0,0.00022,2]
[425821145,1781937042000,-400.0,0.00022,2]
[425821153,1781937042000,-421.0,0.00022191,2]
[425821203,1781937043000,-150.0,0.00024333,2]
[425821205,1781937043000,-326.66,0.00024644,7]
[425821202,1781937043000,-315.8,0.00024324,2]
[425821204,1781937043000,-355.76,0.00024639,2]
[425821207,1781937043000,-589.76,0.00024658,2]
[425821206,1781937043000,-169.58,0.00024658,8]
[425821200,1781937043000,-2726.84,0.00024174,2]
[425821213,1781937043000,-793.37,0.00024999,2]
[425821210,1781937043000,-157.21,0.00024658,2]
[425821209,1781937043000,-158.72,0.00024658,2]
[425821214,1781937043000,-793.37,0.00024999,2]
[425821211,1781937043000,-3058.76632862,0.00024722,2]
[425821212,1781937043000,-2586.85809042,0.00024734,2]
[425821199,1781937043000,-43688.6,0.00024174,2]
[425821215,1781937043000,-793.37,0.00024999,2]
[425821208,1781937043000,-1000.0,0.00024658,2]
[425821201,1781937043000,-2494.55939288,0.00024186,2]
[425821187,1781937043000,-939.0,0.00024,2]
[425821197,1781937043000,-2810.38,0.00024174,2]
[425821216,1781937043000,-793.37,0.00024999,2]
[425821182,1781937043000,-750.0,0.0002389,30]
[425821184,1781937043000,-189.0,0.00024,2]
[425821183,1781937043000,-417.0,0.00024,2]
[425821186,1781937043000,-400.0,0.00024,2]
[425821185,1781937043000,-151.0,0.00024,2]
[425821188,1781937043000,-167.0,0.00024,2]
[425821190,1781937043000,-401.0,0.00024,2]
[425821189,1781937043000,-155.0,0.00024,2]
[425821191,1781937043000,-185.0,0.00024,2]
[425821192,1781937043000,-275.0,0.00024,2]
[425821193,1781937043000,-3625.99457345,0.00024011,2]
[425821194,1781937043000,-232.28,0.0002411,2]
[425821195,1781937043000,-294.87,0.0002411,2]
[425821196,1781937043000,-793.37,0.00024173,2]
[425821198,1781937043000,-785.64,0.00024174,2]
[425821217,1781937043000,-793.37,0.00024999,2]
[425821220,1781937043000,-793.37,0.00024999,2]
[425821219,1781937043000,-793.37,0.00024999,2]
[425821239,1781937043000,-2682.57183977,0.00025282,2]
[425821243,1781937043000,-500.0,0.0002569,2]
[425821241,1781937043000,-151.00138861,0.00025296,2]
[425821240,1781937043000,-179.76368085,0.00025296,2]
[425821244,1781937043000,-500.0,0.0002569,2]
[425821245,1781937043000,-500.0,0.0002569,2]
[425821248,1781937043000,-500.0,0.0002569,2]
[425821238,1781937043000,-157.21,0.00025205,7]
[425821247,1781937043000,-500.0,0.0002569,2]
[425821249,1781937043000,-500.0,0.0002569,2]
[425821251,1781937043000,-376.46013189,0.0002569,2]
[425821250,1781937043000,-500.0,0.0002569,2]
[425821253,1781937043000,-158.72,0.00025753,30]
[425821255,1781937043000,-517.14256691,0.00025785,2]
[425821254,1781937043000,-157.21,0.00025753,30]
[425821218,1781937043000,-793.37,0.00024999,2]
[425821252,1781937043000,-150.0,0.0002569,2]
[425821242,1781937043000,-206.0,0.00025416,2]
[425821246,1781937043000,-500.0,0.0002569,2]
[425821235,1781937043000,-275.0,0.00025,2]
[425821237,1781937043000,-158.72,0.00025205,7]
[425821225,1781937043000,-204.22809012,0.00025,2]
[425821223,1781937043000,-793.38261012,0.00024999,2]
[425821224,1781937043000,-434.70171519,0.00025,2]
[425821221,1781937043000,-793.37,0.00024999,2]
[425821226,1781937043000,-156.81952487,0.00025,2]
[425821227,1781937043000,-405.40783886,0.00025,2]
[425821228,1781937043000,-957.70008222,0.00025,2]
[425821222,1781937043000,-793.37,0.00024999,2]
[425821229,1781937043000,-182.84484808,0.00025,2]
[425821231,1781937043000,-414.0,0.00025,2]
[425821233,1781937043000,-369.19,0.00025,2]
[425821234,1781937043000,-369.19,0.00025,2]
[425821232,1781937043000,-194.02393511,0.00025,2]
[425821236,1781937043000,-3625.99457345,0.00025188,2]
[425821230,1781937043000,-159.0,0.00025,2]
[425821276,1781937044000,-417.25378236,0.000267,2]
[425821275,1781937044000,-263.07781155,0.000267,2]
[425821278,1781937044000,-1196.89807661,0.000267,2]
[425821277,1781937044000,-1218.39935316,0.000267,2]
[425821279,1781937044000,-458.86844295,0.000267,2]
[425821280,1781937044000,-158.72,0.00026849,7]
[425821282,1781937044000,-2991.49051684,0.00026926,2]
[425821281,1781937044000,-157.21,0.00026849,7]
[425821287,1781937044000,-458.86844295,0.00027,2]
[425821283,1781937044000,-263.07781155,0.00027,2]
[425821285,1781937044000,-1218.39935316,0.00027,2]
[425821286,1781937044000,-1196.89807661,0.00027,2]
[425821289,1781937044000,-355.76,0.00027233,2]
[425821290,1781937044000,-249.56021556,0.00027268,4]
[425821288,1781937044000,-501.0,0.00027137,2]
[425821292,1781937044000,-326.66,0.00027288,7]
[425821284,1781937044000,-417.25378236,0.00027,2]
[425821274,1781937044000,-458.454358,0.00026519,2]
[425821257,1781937044000,-785.64,0.00025786,2]
[425821273,1781937044000,-150.0,0.00026504,5]
[425821291,1781937044000,-182.15250732,0.00027268,4]
[425821256,1781937044000,-2810.38,0.00025786,2]
[425821259,1781937044000,-2726.84,0.00025786,2]
[425821258,1781937044000,-43688.6,0.00025786,2]
[425821260,1781937044000,-2781.82699784,0.0002583,2]
[425821261,1781937044000,-355.76,0.00025936,2]
[425821262,1781937044000,-210.62,0.00026027,7]
[425821272,1781937044000,-23110.41,0.000265,5]
[425821264,1781937044000,-315.8,0.00026296,2]
[425821265,1781937044000,-158.72,0.00026301,2]
[425821267,1781937044000,-3625.99457345,0.00026366,2]
[425821266,1781937044000,-157.21,0.00026301,2]
[425821268,1781937044000,-2884.75459676,0.00026378,2]
[425821271,1781937044000,-50000.0,0.000265,7]
[425821269,1781937044000,-317.446108,0.00026498,2]
[425821270,1781937044000,-447.640558,0.00026498,2]
[425821263,1781937044000,-3058.76632862,0.00026201,2]
[425821293,1781937044000,-193.41514567,0.00027297,2]
[425821330,1781937044000,-150.0,0.00027564,5]
[425821297,1781937044000,-1196.89807661,0.000273,2]
[425821315,1781937044000,-1000.0,0.00027397,20]
[425821317,1781937044000,-8447.42,0.00027397,10]
[425821318,1781937044000,-7039.51,0.00027397,10]
[425821320,1781937044000,-263.07781155,0.000275,2]
[425821319,1781937044000,-150.0,0.00027484,7]
[425821324,1781937044000,-458.86844295,0.000275,2]
[425821322,1781937044000,-1218.39935316,0.000275,2]
[425821316,1781937044000,-10136.9,0.00027397,10]
[425821323,1781937044000,-1196.89807661,0.000275,2]
[425821327,1781937044000,-50000.0,0.000275,5]
[425821326,1781937044000,-238.70428546,0.000275,5]
[425821329,1781937044000,-3625.99457345,0.00027544,2]
[425821328,1781937044000,-500.0,0.000275,7]
[425821331,1781937044000,-150.0,0.00027574,7]
[425821332,1781937044000,-150.0,0.00027663,7]
[425821294,1781937044000,-263.07781155,0.000273,2]
[425821325,1781937044000,-2298.67,0.000275,5]
[425821314,1781937044000,-300.0,0.00027397,2]
[425821321,1781937044000,-417.25378236,0.000275,2]
[425821313,1781937044000,-589.76,0.00027397,2]
[425821296,1781937044000,-1218.39935316,0.000273,2]
[425821312,1781937044000,-429.9505709,0.00027397,2]
[425821295,1781937044000,-417.25378236,0.000273,2]
[425821299,1781937044000,-460.42858565,0.00027324,2]
[425821298,1781937044000,-458.86844295,0.000273,2]
[425821300,1781937044000,-150.0,0.00027395,7]
[425821303,1781937044000,-150.63149704,0.00027395,7]
[425821304,1781937044000,-152.70737994,0.00027395,7]
[425821301,1781937044000,-150.0,0.00027395,7]
[425821302,1781937044000,-150.0,0.00027395,7]
[425821305,1781937044000,-150.0,0.00027395,7]
[425821306,1781937044000,-150.0,0.00027395,7]
[425821307,1781937044000,-150.0,0.00027395,7]
[425821309,1781937044000,-158.72,0.00027397,30]
[425821308,1781937044000,-150.0,0.00027397,2]
[425821311,1781937044000,-1500.0,0.00027397,2]
[425821310,1781937044000,-157.21,0.00027397,30]
[425821364,1781937045000,-1218.39935316,0.000284,2]
[425821366,1781937045000,-200.13817817,0.0002842,2]
[425821367,1781937045000,-150.0,0.00028469,30]
[425821361,1781937045000,-331.23726005,0.00028279,2]
[425821360,1781937045000,-315.8,0.00028267,2]
[425821350,1781937045000,-158.72,0.00027945,2]
[425821358,1781937045000,-150.0,0.00028264,30]
[425821365,1781937045000,-150.0,0.00028409,30]
[425821359,1781937045000,-150.0,0.00028264,30]
[425821363,1781937045000,-150.0,0.00028379,30]
[425821374,1781937045000,-150.0,0.00028612,30]
[425821368,1781937045000,-50000.0,0.000285,7]
[425821369,1781937045000,-50000.0,0.000285,7]
[425821370,1781937045000,-1783.53,0.00028521,2]
[425821372,1781937045000,-700.87756877,0.00028554,2]
[425821371,1781937045000,-355.76,0.00028529,2]
[425821375,1781937045000,-1000.0,0.00028629,2]
[425821377,1781937045000,-188.59,0.0002863,30]
[425821378,1781937045000,-166.28,0.0002863,2]
[425821357,1781937045000,-700.87756877,0.0002825,2]
[425821362,1781937045000,-150.0,0.0002829,30]
[425821353,1781937045000,-150.0,0.00028021,7]
[425821333,1781937045000,-3058.76632862,0.00027681,2]
[425821355,1781937045000,-150.0,0.00028111,7]
[425821379,1781937045000,-164.69,0.0002863,2]
[425821334,1781937045000,-150.0,0.00027753,7]
[425821336,1781937045000,-417.25378236,0.000278,2]
[425821335,1781937045000,-263.07781155,0.000278,2]
[425821337,1781937045000,-1218.39935316,0.000278,2]
[425821339,1781937045000,-458.86844295,0.000278,2]
[425821340,1781937045000,-150.0,0.00027829,7]
[425821338,1781937045000,-1196.89807661,0.000278,2]
[425821342,1781937045000,-150.0,0.00027842,7]
[425821356,1781937045000,-150.0,0.000282,30]
[425821341,1781937045000,-150.0,0.00027829,7]
[425821343,1781937045000,-500.0,0.00027886,15]
[425821346,1781937045000,-150.0,0.00027902,7]
[425821345,1781937045000,-499.50923344,0.00027886,15]
[425821347,1781937045000,-501.0,0.00027914,2]
[425821348,1781937045000,-150.0,0.00027932,7]
[425821349,1781937045000,-700.87756877,0.00027945,2]
[425821351,1781937045000,-157.21,0.00027945,2]
[425821352,1781937045000,-150.0,0.00028003,7]
[425821354,1781937045000,-1218.39935316,0.000281,2]
[425821344,1781937045000,-500.0,0.00027886,15]
[425821373,1781937045000,-150.0,0.00028558,30]
[425821402,1781937045000,-700.87756877,0.00028858,2]
[425821382,1781937045000,-208.8,0.00028633,30]
[425821404,1781937045000,-1556.77296581,0.00028882,2]
[425821406,1781937045000,-1218.39935316,0.000289,2]
[425821408,1781937045000,-215.45357865,0.000289,2]
[425821411,1781937045000,-599.0,0.00028904,2]
[425821410,1781937045000,-1556.77296581,0.000289,2]
[425821409,1781937045000,-304.20869016,0.000289,2]
[425821412,1781937045000,-150.0,0.00028916,30]
[425821407,1781937045000,-203.0,0.000289,2]
[425821413,1781937045000,-150.0,0.00028916,30]
[425821405,1781937045000,-160.0,0.0002889,5]
[425821414,1781937045000,-150.0,0.00028916,30]
[425821424,1781937045000,-401.0,0.00028932,30]
[425821419,1781937045000,-939.0,0.0002893,30]
[425821423,1781937045000,-164.69,0.00028931,2]
[425821421,1781937045000,-155.0,0.0002893,30]
[425821420,1781937045000,-167.0,0.0002893,30]
[425821418,1781937045000,-400.0,0.0002893,30]
[425821416,1781937045000,-155.12492282,0.0002893,30]
[425821417,1781937045000,-151.0,0.0002893,30]
[425821422,1781937045000,-166.28,0.00028931,2]
[425821415,1781937045000,-189.0,0.0002893,30]
[425821403,1781937045000,-1556.77296582,0.00028864,2]
[425821376,1781937045000,-1430.29,0.0002863,2]
[425821401,1781937045000,-150.0,0.00028855,2]
[425821425,1781937045000,-185.0,0.00028932,30]
[425821380,1781937045000,-188.81,0.0002863,30]
[425821381,1781937045000,-156.55,0.00028632,30]
[425821383,1781937045000,-150.0,0.00028648,30]
[425821385,1781937045000,-150.0,0.00028699,30]
[425821386,1781937045000,-150.0,0.00028699,30]
[425821384,1781937045000,-501.0,0.00028692,3]
[425821387,1781937045000,-1218.39935316,0.000287,2]
[425821389,1781937045000,-500.0,0.00028722,17]
[425821390,1781937045000,-3625.99457345,0.00028722,2]
[425821388,1781937045000,-500.0,0.00028722,17]
[425821392,1781937045000,-164.69,0.0002873,7]
[425821393,1781937045000,-150.0,0.00028737,30]
[425821394,1781937045000,-150.0,0.00028767,2]
[425821395,1781937045000,-188.59,0.00028797,7]
[425821396,1781937045000,-188.81,0.00028797,7]
[425821397,1781937045000,-204.0,0.0002882,30]
[425821399,1781937045000,-166.28,0.0002883,30]
[425821398,1781937045000,-150.0,0.00028827,30]
[425821391,1781937045000,-166.28,0.0002873,7]
[425821400,1781937045000,-164.69,0.0002883,30]
[425821433,1781937046000,-1000.0,0.00028999,2]
[425821430,1781937046000,-188.81,0.00028964,2]
[425821428,1781937046000,-417.0,0.00028937,30]
[425821426,1781937046000,-275.0,0.00028932,30]
[425821432,1781937046000,-1000.0,0.00028999,2]
[425821427,1781937046000,-158.0,0.00028937,30]
[425821435,1781937046000,-1000.0,0.00028999,2]
[425821431,1781937046000,-150.0,0.00028999,20]
[425821434,1781937046000,-1000.0,0.00028999,2]
[425821429,1781937046000,-188.59,0.00028964,2]
[425821437,1781937046000,-3000.0,0.00028999,3]
[425821436,1781937046000,-1000.0,0.00028999,2]
[425821446,1781937046000,-73.23265576,0.00029008,7]
[425821444,1781937046000,-157.94755896,0.00021332,2]
[425821445,1781937046000,-208.79,0.00028632,30]
[425821443,1781937046000,-324.27874104,0.00021332,2]
[425821441,1781937046000,-150.0,0.00029006,30]
[425821442,1781937046000,-1070.47686612,0.00029009,2]
[425821439,1781937046000,-857.0,0.00029,7]
[425821440,1781937046000,-207.51201685,0.00029,2]
[425821438,1781937046000,-1322078.08431091,0.00029,3]
[425821450,1781937145000,-855.17,0.00014938,2]
[425821451,1781937199000,-300.0,0.00013799,2]
[425821452,1781937253000,-166.84026281,0.00013799,2]
[425821453,1781937307000,-190.56188753,0.00013798,2]
[425821454,1781937360000,-400.85285627,0.00013798,2]
[425821455,1781937414000,-280.59699939,0.00013797,2]
[425821456,1781937467000,-228.59338182,0.00013797,2]
[425821457,1781937522000,-500.0,0.00013797,2]
[425821458,1781937542000,344.11,0.0002804,120]
[425821459,1781937575000,-368.97853621,0.00012997,2]
[425821460,1781937628000,-196.41789958,0.00013796,2]
[425821461,1781937854000,-300.0,0.00013794,2]
[425821462,1781937908000,-500.0,0.00013793,2]
[425821473,1781937922000,-151.0,0.00013794,2]
[425821463,1781937922000,-500.0,0.00013793,2]
[425821465,1781937922000,-500.0,0.00013793,2]
[425821466,1781937922000,-279.37757215,0.00013793,2]
[425821468,1781937922000,-500.0,0.00013793,2]
[425821464,1781937922000,-500.0,0.00013793,2]
[425821469,1781937922000,-500.0,0.00013793,2]
[425821470,1781937922000,-500.0,0.00013793,2]
[425821472,1781937922000,-500.0,0.00013793,2]
[425821467,1781937922000,-500.0,0.00013793,2]
[425821471,1781937922000,-500.0,0.00013793,2]
[425821474,1781937923000,-255.26978992,0.00013798,2]
[425821475,1781937923000,-16614.35263793,0.000138,2]
[425821476,1781937961000,-1363.46986207,0.000138,2]
[425821477,1781938014000,-216.28381402,0.00013804,2]
[425821478,1781938068000,-250.0,0.00014,2]
[425821479,1781938122000,-150.0,0.00014139,2]
[425821481,1781938175000,-151.0,0.00014278,2]
[425821480,1781938175000,-586.59750802,0.00014278,2]
[425821484,1781938175000,-60.26612712,0.00014279,2]
[425821483,1781938175000,-150.0,0.00014278,2]
[425821482,1781938175000,-150.0,0.00014278,2]
[425821485,1781938229000,-500.0,0.00014278,2]
[425821487,1781938231000,-500.0,0.00014278,2]
[425821490,1781938231000,-151.0,0.00014278,2]
[425821489,1781938231000,-423.62623394,0.00014278,2]
[425821486,1781938231000,-265.35219346,0.00014278,2]
[425821491,1781938231000,-150.0,0.00014278,2]
[425821493,1781938231000,-152.0,0.00014278,2]
[425821492,1781938231000,-150.0,0.00014278,2]
[425821494,1781938231000,-216.28381402,0.0001442,2]
[425821488,1781938231000,-345.95281501,0.00014278,2]
[425821521,1781938233000,-500.0,0.00016437,2]
[425821514,1781938233000,-551.34184329,0.00016437,2]
[425821516,1781938233000,-500.0,0.00016437,2]
[425821511,1781938233000,-500.0,0.00016437,2]
[425821519,1781938233000,-500.0,0.00016437,2]
[425821510,1781938233000,-500.0,0.00016437,2]
[425821513,1781938233000,-500.0,0.00016437,2]
[425821512,1781938233000,-500.0,0.00016437,2]
[425821509,1781938233000,-640.84652929,0.00016437,2]
[425821508,1781938233000,-500.0,0.00016437,2]
[425821501,1781938233000,-190.89736606,0.00016338,2]
[425821504,1781938233000,-3609.36101665,0.00016338,2]
[425821505,1781938233000,-8560.77224114,0.00016338,2]
[425821500,1781938233000,-166.66,0.00016001,2]
[425821544,1781938233000,-1809.04311432,0.00016438,2]
[425821499,1781938233000,-250.0,0.00015706,2]
[425821498,1781938233000,-250.0,0.00015706,2]
[425821497,1781938233000,-101.06918256,0.00015706,2]
[425821495,1781938233000,-589.96111029,0.00015638,2]
[425821496,1781938233000,-150.05682827,0.00015706,2]
[425821507,1781938233000,-2000.0,0.00016338,2]
[425821532,1781938233000,-1809.04311432,0.00016438,2]
[425821506,1781938233000,-166.66,0.00016338,2]
[425821523,1781938233000,-500.0,0.00016437,2]
[425821534,1781938233000,-1809.04311432,0.00016438,2]
[425821563,1781938233000,-1809.04311432,0.00016438,2]
[425821561,1781938233000,-1809.04311432,0.00016438,2]
[425821559,1781938233000,-1809.04311432,0.00016438,2]
[425821560,1781938233000,-1809.04311432,0.00016438,2]
[425821555,1781938233000,-1809.04311432,0.00016438,2]
[425821556,1781938233000,-1809.04311432,0.00016438,2]
[425821550,1781938233000,-1809.04311432,0.00016438,2]
[425821553,1781938233000,-1809.04311432,0.00016438,2]
[425821552,1781938233000,-1809.04311432,0.00016438,2]
[425821554,1781938233000,-1809.04311432,0.00016438,2]
[425821562,1781938233000,-1809.04311432,0.00016438,2]
[425821546,1781938233000,-1809.04311432,0.00016438,2]
[425821557,1781938233000,-1809.04311432,0.00016438,2]
[425821541,1781938233000,-1809.04311432,0.00016438,2]
[425821538,1781938233000,-1809.04311432,0.00016438,2]
[425821530,1781938233000,-1809.04311432,0.00016438,2]
[425821542,1781938233000,-1809.04311432,0.00016438,2]
[425821525,1781938233000,-1809.04311432,0.00016438,2]
[425821527,1781938233000,-1809.04311432,0.00016438,2]
[425821558,1781938233000,-1809.04311432,0.00016438,2]
[425821548,1781938233000,-1809.04311432,0.00016438,2]
[425821536,1781938233000,-1809.04311432,0.00016438,2]
[425821584,1781938234000,-1809.04311432,0.00016438,2]
[425821585,1781938234000,-1809.04311432,0.00016438,2]
[425821586,1781938234000,-1809.04311432,0.00016438,2]
[425821587,1781938234000,-1809.04311432,0.00016438,2]
[425821588,1781938234000,-1809.04311432,0.00016438,2]
[425821590,1781938234000,-1809.04311432,0.00016438,2]
[425821589,1781938234000,-1809.04311432,0.00016438,2]
[425821591,1781938234000,-1809.04311432,0.00016438,2]
[425821595,1781938234000,-1809.04311432,0.00016438,2]
[425821594,1781938234000,-1809.04311432,0.00016438,2]
[425821593,1781938234000,-1809.04311432,0.00016438,2]
[425821597,1781938234000,-1809.04311432,0.00016438,2]
[425821599,1781938234000,-1809.04311432,0.00016438,2]
[425821598,1781938234000,-1809.04311432,0.00016438,2]
[425821601,1781938234000,-1802.58224607,0.00016438,2]
[425821583,1781938234000,-1809.04311432,0.00016438,2]
[425821592,1781938234000,-1809.04311432,0.00016438,2]
[425821580,1781938234000,-1809.04311432,0.00016438,2]
[425821570,1781938234000,-1809.04311432,0.00016438,2]
[425821581,1781938234000,-1809.04311432,0.00016438,2]
[425821600,1781938234000,-1809.04311432,0.00016438,2]
[425821565,1781938234000,-1809.04311432,0.00016438,2]
[425821564,1781938234000,-1809.04311432,0.00016438,2]
[425821567,1781938234000,-1809.04311432,0.00016438,2]
[425821566,1781938234000,-1809.04311432,0.00016438,2]
[425821569,1781938234000,-1809.04311432,0.00016438,2]
[425821571,1781938234000,-1809.04311432,0.00016438,2]
[425821579,1781938234000,-1809.04311432,0.00016438,2]
[425821568,1781938234000,-1809.04311432,0.00016438,2]
[425821573,1781938234000,-1809.04311432,0.00016438,2]
[425821574,1781938234000,-1809.04311432,0.00016438,2]
[425821576,1781938234000,-1809.04311432,0.00016438,2]
[425821575,1781938234000,-1809.04311432,0.00016438,2]
[425821582,1781938234000,-1809.04311432,0.00016438,2]
[425821578,1781938234000,-1809.04311432,0.00016438,2]
[425821577,1781938234000,-1809.04311432,0.00016438,2]
[425821572,1781938234000,-1809.04311432,0.00016438,2]
[425821602,1781938234000,-1802.58224607,0.00016438,2]
[425821596,1781938234000,-1809.04311432,0.00016438,2]
[425821603,1781938234000,-1802.58224607,0.00016438,2]
[425821624,1781938234000,-1802.58224607,0.00016438,2]
[425821623,1781938234000,-1802.58224607,0.00016438,2]
[425821627,1781938234000,-1802.58224607,0.00016438,2]
[425821625,1781938234000,-1802.58224607,0.00016438,2]
[425821626,1781938234000,-1802.58224607,0.00016438,2]
[425821630,1781938234000,-500.0,0.00016438,2]
[425821634,1781938234000,-436.27,0.00016438,2]
[425821631,1781938234000,-6030.07,0.00016438,2]
[425821638,1781938234000,-1863.6,0.00016438,2]
[425821639,1781938234000,-1188.44,0.00016438,2]
[425821636,1781938234000,-1220.27,0.00016438,2]
[425821635,1781938234000,-499.99,0.00016438,2]
[425821637,1781938234000,-1109.61,0.00016438,2]
[425821632,1781938234000,-1584.46,0.00016438,2]
[425821640,1781938234000,-999.99,0.00016438,2]
[425821642,1781938234000,-1500.0,0.00016568,2]
[425821604,1781938234000,-1802.58224607,0.00016438,2]
[425821629,1781938234000,-433.0,0.00016438,2]
[425821622,1781938234000,-1802.58224607,0.00016438,2]
[425821633,1781938234000,-9999.99,0.00016438,2]
[425821620,1781938234000,-1802.58224607,0.00016438,2]
[425821628,1781938234000,-1802.582246,0.00016438,2]
[425821607,1781938234000,-1802.58224607,0.00016438,2]
[425821609,1781938234000,-1802.58224607,0.00016438,2]
[425821608,1781938234000,-1802.58224607,0.00016438,2]
[425821605,1781938234000,-1802.58224607,0.00016438,2]
[425821641,1781938234000,-150.99,0.00016438,2]
[425821614,1781938234000,-1802.58224607,0.00016438,2]
[425821616,1781938234000,-1802.58224607,0.00016438,2]
[425821606,1781938234000,-1802.58224607,0.00016438,2]
[425821615,1781938234000,-1802.58224607,0.00016438,2]
[425821610,1781938234000,-1802.58224607,0.00016438,2]
[425821617,1781938234000,-1802.58224607,0.00016438,2]
[425821618,1781938234000,-1802.58224607,0.00016438,2]
[425821611,1781938234000,-1802.58224607,0.00016438,2]
[425821613,1781938234000,-1802.58224607,0.00016438,2]
[425821619,1781938234000,-1802.58224607,0.00016438,2]
[425821612,1781938234000,-1802.58224607,0.00016438,2]
[425821621,1781938234000,-1802.58224607,0.00016438,2]
[425821650,1781938235000,-166.66,0.00017012,2]
[425821643,1781938235000,-6454.76813745,0.00016568,2]
[425821646,1781938235000,-166.66,0.00016675,2]
[425821648,1781938235000,-500.00081048,0.00016986,2]
[425821647,1781938235000,-500.0,0.00016712,2]
[425821645,1781938235000,-1951.04,0.00016648,2]
[425821644,1781938235000,-268.17186255,0.00016568,2]
[425821652,1781938235000,-160.58,0.00017212,2]
[425821649,1781938235000,-9653.62,0.00017,2]
[425821651,1781938235000,-1555.5,0.00017116,2]
[425821656,1781938235000,-195.45,0.00017489,2]
[425821653,1781938235000,-433.0,0.0001726,2]
[425821654,1781938235000,-166.66,0.00017349,2]
[425821664,1781938235000,-7912.7101908,0.00018225,2]
[425821661,1781938235000,-217.123883,0.00018082,2]
[425821662,1781938235000,-1539.90140405,0.00018212,2]
[425821663,1781938235000,-132.83507545,0.00018212,2]
[425821658,1781938235000,-166.66,0.00017686,2]
[425821659,1781938235000,-12361.03062383,0.00017845,2]
[425821660,1781938235000,-373.2076998,0.0001799,2]
[425821655,1781938235000,-2500.0,0.00017462,2]
[425821657,1781938235000,-1613.0535,0.00017664,2]
[425821666,1781938238000,-10410.32645418,0.00018225,2]
[425821665,1781938238000,-312.89858896,0.00018225,2]
[425821686,1781938251000,-1865.36488656,0.00019856,2]
[425821676,1781938251000,-2800.64216366,0.00018225,2]
[425821677,1781938251000,-137359.5826024,0.00018225,2]
[425821680,1781938251000,-250.0,0.00018866,2]
[425821678,1781938251000,-195.45,0.0001846,2]
[425821687,1781938251000,-153.0,0.0002,2]
[425821679,1781938251000,-1734.62772924,0.0001876,2]
[425821689,1781938251000,-330.0,0.0002,2]
[425821682,1781938251000,-12361.03062383,0.00019352,2]
[425821683,1781938251000,-195.45,0.00019432,2]
[425821685,1781938251000,-500.0,0.0001978,2]
[425821681,1781938251000,-1798.80895522,0.00019308,2]
[425821688,1781938251000,-158.0,0.0002,2]
[425821690,1781938251000,-610.0,0.0002,2]
[425821691,1781938251000,-190.63801148,0.0002,2]
[425821684,1781938251000,-424.0,0.00019452,2]
[425821730,1781938252000,-151.0,0.000215,2]
[425821727,1781938252000,-151.0,0.000215,2]
[425821726,1781938252000,-151.0,0.000215,2]
[425821720,1781938252000,-151.0,0.000215,2]
[425821722,1781938252000,-151.0,0.000215,2]
[425821718,1781938252000,-151.0,0.000215,2]
[425821724,1781938252000,-151.0,0.000215,2]
[425821729,1781938252000,-151.0,0.000215,2]
[425821721,1781938252000,-151.0,0.000215,2]
[425821717,1781938252000,-151.0,0.000215,2]
[425821732,1781938252000,-2080.17592889,0.000215,2]
[425821731,1781938252000,-500.0,0.000215,2]
[425821728,1781938252000,-151.0,0.000215,2]